bitfinex/quotes_BTCUSD_20240818
["timestamp","ask_amount","ask_price","bid_price","bid_amount"]
[1723961704422,0.002825,59669.0,59668.0,1.60148335]
[1723961704624,0.002825,59669.0,59668.0,1.60048335]
[1723961704625,0.068525,59669.0,59668.0,1.60048335]
[1723961704849,0.068525,59669.0,59668.0,1.60048571]
[1723961705171,0.068525,59669.0,59668.0,1.57549124]
[1723961705371,0.068525,59669.0,59668.0,1.46560184]
[1723961705504,0.068525,59669.0,59668.0,1.5765035]
[1723961706329,0.068525,59669.0,59668.0,1.5755035]
[1723961707547,0.151625,59669.0,59668.0,1.16932046]
[1723961707753,0.151625,59669.0,59668.0,1.2946665]
[1723961708148,0.151625,59669.0,59668.0,1.26960671]
[1723961708352,0.151625,59669.0,59668.0,1.16932046]
[1723961709680,0.151625,59669.0,59668.0,1.16932628]
[1723961710247,0.151625,59669.0,59668.0,1.29467232]
[1723961710550,0.151625,59669.0,59668.0,1.29466922]
[1723961712143,0.151625,59669.0,59668.0,0.79748138]
[1723961712330,0.151625,59669.0,59668.0,1.2946796]
[1723961712576,0.068525,59669.0,59668.0,1.16932505]
[1723961712748,0.068525,59669.0,59668.0,1.19432112]
[1723961712964,0.002825,59669.0,59668.0,1.60350666]
[1723961713158,0.002825,59669.0,59668.0,1.60150666]
[1723961713538,0.002825,59669.0,59668.0,1.60150229]
[1723961714117,0.002825,59669.0,59668.0,1.60150376]
[1723961714360,0.002825,59669.0,59668.0,1.61070454]
[1723961715709,0.002825,59669.0,59668.0,1.61070455]
[1723961716208,0.002825,59669.0,59668.0,1.58570866]
[1723961716419,0.002825,59669.0,59668.0,1.61070455]
[1723961718991,0.002825,59669.0,59668.0,1.75930459]
[1723961722977,0.002825,59669.0,59668.0,1.75930429]
[1723961723402,0.002825,59669.0,59668.0,1.64939825]
[1723961723600,0.002825,59669.0,59668.0,1.75926381]
[1723961724849,0.002825,59669.0,59668.0,1.64018349]
[1723961725071,0.002825,59669.0,59668.0,1.75922235]
[1723961726134,0.002825,59669.0,59668.0,1.75922069]
[1723961727486,0.002825,59669.0,59668.0,1.75922013]
[1723961727837,0.002825,59669.0,59668.0,1.73423848]
[1723961728039,0.002825,59669.0,59668.0,1.75921694]
[1723961729087,0.002825,59669.0,59668.0,1.75921597]
[1723961729453,0.002825,59669.0,59668.0,2.2797658]
[1723961730275,0.002825,59669.0,59668.0,1.7592]
[1723961730517,0.002825,59669.0,59668.0,2.51438083]
[1723961730820,1e-08,59669.0,59668.0,2.69348168]
[1723961731236,1e-08,59669.0,59668.0,2.68948168]
[1723961731437,1e-08,59669.0,59668.0,2.69348168]
[1723961731670,1e-08,59669.0,59668.0,2.68940891]
[1723961731977,1e-08,59669.0,59668.0,2.69340891]
[1723961732156,1e-08,59669.0,59668.0,2.91119441]
[1723961732580,1e-08,59669.0,59668.0,2.91519441]
[1723961732735,1e-08,59669.0,59668.0,2.90500371]
[1723961732938,1e-08,59669.0,59668.0,2.91122963]
[1723961733562,1e-08,59669.0,59668.0,2.87093813]
[1723961733766,1e-08,59669.0,59668.0,2.76113296]
[1723961733965,1e-08,59669.0,59668.0,2.87094227]
[1723961734121,1e-08,59669.0,59668.0,2.64915677]
[1723961735191,1e-08,59669.0,59668.0,2.64915791]
[1723961735520,1e-08,59669.0,59668.0,2.59911153]
[1723961735720,1e-08,59669.0,59668.0,2.64915981]
[1723961736121,1e-08,59669.0,59668.0,2.59911153]
[1723961736323,1e-08,59669.0,59668.0,2.64915981]
[1723961736639,1e-08,59669.0,59668.0,2.65315981]
[1723961736839,0.000825,59678.0,59677.0,1.060682]
[1723961737059,0.000825,59678.0,59677.0,2.0904104]
[1723961737264,0.000825,59678.0,59677.0,2.13076931]
[1723961737466,0.000825,59678.0,59677.0,2.09039743]
[1723961737665,0.000825,59678.0,59677.0,2.08639743]
[1723961737872,0.000825,59678.0,59677.0,2.08839743]
[1723961738087,0.001825,59678.0,59677.0,2.24845882]
[1723961738315,0.001825,59678.0,59677.0,2.48505482]
[1723961738470,0.001825,59678.0,59677.0,2.33499343]
[1723961738664,0.001825,59678.0,59677.0,2.87138584]
[1723961738866,0.001825,59678.0,59677.0,2.35087244]
[1723961739332,0.001825,59678.0,59677.0,2.33499343]
[1723961739707,0.001825,59678.0,59677.0,2.33490805]
[1723961739910,0.001825,59678.0,59677.0,2.11031205]
[1723961740110,0.001825,59678.0,59677.0,2.26027606]
[1723961740656,0.001825,59678.0,59677.0,2.23529088]
[1723961740877,0.001825,59678.0,59677.0,2.26025556]
[1723961741261,0.001825,59678.0,59677.0,2.26022496]
[1723961742202,0.001825,59678.0,59677.0,2.11029767]
[1723961744108,0.001825,59678.0,59677.0,1.96634644]
[1723961744287,0.001825,59678.0,59677.0,2.11032071]
[1723961744487,0.001825,59678.0,59677.0,1.97092071]
[1723961744488,0.063425,59678.0,59677.0,1.97092071]
[1723961744689,0.063425,59678.0,59677.0,1.94792071]
[1723961744864,0.063425,59678.0,59677.0,2.07283177]
[1723961745445,0.063425,59678.0,59677.0,2.07285128]
[1723961745671,1e-08,59678.0,59677.0,1.94794022]
[1723961746102,1e-08,59678.0,59677.0,1.94994022]
[1723961747144,1e-08,59678.0,59677.0,1.93083669]
[1723961747350,1e-08,59678.0,59677.0,2.04984633]
[1723961748202,1e-08,59678.0,59677.0,1.967782]
[1723961748405,1e-08,59678.0,59677.0,2.049782]
[1723961748832,0.06160001,59678.0,59677.0,2.04975692]
[1723961749007,0.06160001,59678.0,59677.0,2.04975588]
[1723961749607,1e-08,59678.0,59677.0,2.04975588]
[1723961749836,0.00082501,59678.0,59677.0,2.04975588]
[1723961750035,0.00082501,59678.0,59677.0,1.96775588]
[1723961750466,0.00082501,59678.0,59677.0,2.02476493]
[1723961750680,0.00082501,59678.0,59677.0,2.04972498]
[1723961750882,0.00082501,59678.0,59677.0,2.04970032]
[1723961751107,0.00082501,59678.0,59677.0,1.94987263]
[1723961751289,0.00082501,59678.0,59677.0,2.04969615]
[1723961752118,0.00082501,59678.0,59677.0,2.0496961]
[1723961752439,0.00082501,59678.0,59677.0,1.93578789]
[1723961752686,0.00082501,59678.0,59677.0,2.04969832]
[1723961752894,0.00082501,59678.0,59677.0,2.04969856]
[1723961753493,0.00082501,59678.0,59677.0,2.04970772]
[1723961754252,0.00082501,59678.0,59677.0,2.04971103]
[1723961754595,0.13962501,59678.0,59677.0,2.04771103]
[1723961754812,0.13962501,59678.0,59677.0,2.04971103]
[1723961755692,0.13962501,59678.0,59677.0,1.94987826]
[1723961756528,0.13962501,59678.0,59677.0,1.92491268]
[1723961756737,0.13962501,59678.0,59677.0,1.94987291]
[1723961758042,0.13962501,59678.0,59677.0,1.94987289]
[1723961759857,0.13962501,59678.0,59677.0,1.92491194]
[1723961759858,0.07682501,59678.0,59677.0,1.92491194]
[1723961760083,0.00082501,59678.0,59677.0,1.94987211]
[1723961760282,0.00082501,59678.0,59677.0,2.02497211]
[1723961760661,0.00825,59681.0,59677.0,2.02497211]
[1723961760662,0.00825,59681.0,59680.0,0.826044]
[1723961760884,0.00825,59681.0,59680.0,1.67026705]
[1723961761111,0.00825,59681.0,59680.0,1.77011092]
[1723961761314,0.00825,59681.0,59680.0,1.42332524]
[1723961761677,0.00825,59681.0,59680.0,1.79505754]
[1723961761828,0.00825,59681.0,59680.0,1.79505702]
[1723961762602,0.00825,59681.0,59680.0,1.80705702]
[1723961762946,0.00825,59681.0,59680.0,1.72505702]
[1723961763146,0.08425,59681.0,59680.0,1.81305702]
[1723961763360,0.08425,59681.0,59680.0,1.7061248]
[1723961763556,0.08425,59681.0,59680.0,0.91571002]
[1723961763757,0.14705,59681.0,59680.0,0.78101454]
[1723961763955,0.14705,59681.0,59680.0,1.15951129]
[1723961764183,0.14705,59681.0,59680.0,0.91573924]
[1723961764383,0.14705,59681.0,59680.0,0.97486727]
[1723961764769,0.14705,59681.0,59680.0,0.92492685]
[1723961764981,0.14705,59681.0,59680.0,0.9748677]
[1723961766071,0.14705,59681.0,59680.0,0.97487122]
[1723961766679,0.14705,59681.0,59680.0,2.24427122]
[1723961766878,0.14705,59681.0,59680.0,2.47885522]
[1723961767081,0.14705,59681.0,59680.0,2.42890654]
[1723961767299,0.14705,59681.0,59680.0,2.80065272]
[1723961767427,0.14705,59681.0,59680.0,2.90055009]
[1723961767945,0.14705,59681.0,59680.0,2.87558693]
[1723961768144,0.14705,59681.0,59680.0,2.90054731]
[1723961768599,0.14705,59681.0,59680.0,2.92552165]
[1723961768781,0.14705,59681.0,59680.0,2.90057029]
[1723961769141,0.14705,59681.0,59680.0,2.80064994]
[1723961769342,0.14705,59681.0,59680.0,3.00752165]
[1723961769558,0.14705,59681.0,59680.0,2.88264994]
[1723961769760,0.14705,59681.0,59680.0,2.98257834]
[1723961770007,0.14705,59681.0,59680.0,2.88264994]
[1723961770211,0.14705,59681.0,59680.0,3.00752165]
[1723961770579,0.14705,59681.0,59680.0,3.00756202]
[1723961771929,0.08425,59681.0,59680.0,3.00756202]
[1723961772139,0.00825,59681.0,59680.0,2.882638]
[1723961772339,0.00825,59681.0,59680.0,2.88260894]
[1723961772838,0.00825,59681.0,59680.0,2.88260904]
[1723961775143,0.00825,59681.0,59680.0,2.88360904]
[1723961775348,0.00825,59681.0,59680.0,2.88260813]
[1723961775885,0.00825,59681.0,59680.0,2.88260683]
[1723961776309,0.00825,59681.0,59680.0,3.03267484]
[1723961776514,0.00825,59681.0,59680.0,2.87342125]
[1723961776694,0.00825,59681.0,59680.0,3.03267498]
[1723961777068,0.00825,59681.0,59680.0,2.88260697]
[1723961777842,0.00825,59681.0,59680.0,3.07293935]
[1723961778043,0.00825,59681.0,59680.0,3.03267498]
[1723961778269,0.00825,59681.0,59680.0,3.59336601]
[1723961778427,0.00825,59681.0,59680.0,3.444298]
[1723961778649,0.00825,59681.0,59680.0,3.55616895]
[1723961778842,0.00825,59681.0,59680.0,3.59843221]
[1723961779658,0.00825,59681.0,59680.0,3.61029792]
[1723961779877,0.00825,59681.0,59680.0,3.4601487]
[1723961780839,0.00825,59681.0,59680.0,3.46015336]
[1723961781145,0.00825,59681.0,59680.0,3.46215336]
[1723961781802,0.00825,59681.0,59680.0,3.46415336]
[1723961782394,0.00825,59681.0,59680.0,3.46015336]
[1723961782600,0.00825,59681.0,59680.0,3.46415336]
[1723961783571,0.00825,59681.0,59680.0,3.46015336]
[1723961783993,0.08765,59692.0,59687.0,0.58739]
[1723961784201,0.08765,59692.0,59687.0,1.84866084]
[1723961784650,0.08765,59692.0,59687.0,3.78858819]
[1723961785395,0.08765,59692.0,59687.0,3.79558786]
[1723961785761,0.08765,59692.0,59687.0,3.79551182]
[1723961785983,0.08765,59692.0,59687.0,3.2751338]
[1723961786156,0.08765,59692.0,59687.0,3.64537007]
[1723961787283,0.08765,59692.0,59687.0,3.12499399]
[1723961788265,0.08765,59692.0,59687.0,3.04299399]
[1723961788470,0.08765,59692.0,59687.0,2.78443799]
[1723961788471,0.14855,59688.0,59687.0,2.78443799]
[1723961788668,0.14855,59688.0,59687.0,2.86643799]
[1723961788874,0.14855,59688.0,59687.0,2.49474079]
[1723961789085,0.14855,59688.0,59687.0,2.8664523]
[1723961789591,0.14855,59688.0,59687.0,2.86646685]
[1723961789792,0.14855,59688.0,59687.0,2.22580031]
[1723961790058,0.14855,59688.0,59687.0,2.31676549]
[1723961790710,0.14855,59688.0,59687.0,2.20704891]
[1723961790939,0.14855,59688.0,59687.0,2.31677798]
[1723961791555,0.14855,59688.0,59687.0,2.55133398]
[1723961791759,0.14855,59688.0,59687.0,2.44160491]
[1723961791946,0.14855,59688.0,59687.0,2.55132473]
[1723961792092,0.00825,59688.0,59687.0,2.72287927]
[1723961792298,0.00825,59688.0,59687.0,2.95743328]
[1723961792492,0.00825,59688.0,59687.0,2.59777388]
[1723961792707,0.00825,59688.0,59687.0,2.83232988]
[1723961792917,0.00825,59688.0,59687.0,2.75032988]
[1723961793124,0.00825,59688.0,59687.0,2.95742292]
[1723961793549,0.00825,59688.0,59687.0,2.95743122]
[1723961793750,0.00825,59688.0,59687.0,2.84771339]
[1723961794016,0.00825,59688.0,59687.0,2.95743093]
[1723961794217,0.00825,59688.0,59687.0,2.95743065]
[1723961795242,0.00825,59688.0,59687.0,2.98238466]
[1723961797930,0.00825,59688.0,59687.0,2.98238184]
[1723961798331,0.00825,59688.0,59687.0,2.87266614]
[1723961798532,0.00825,59688.0,59687.0,2.98238225]
[1723961799411,0.00825,59688.0,59687.0,2.98338225]
[1723961799561,0.00825,59688.0,59687.0,2.86747537]
[1723961801105,0.00825,59688.0,59687.0,2.86647537]
[1723961802265,0.15085,59688.0,59687.0,2.86646559]
[1723961802468,0.15085,59688.0,59687.0,1.59706559]
[1723961802591,0.08685,59688.0,59687.0,1.59706559]
[1723961804870,0.08685,59688.0,59687.0,1.59705833]
[1723961805379,0.00825,59688.0,59687.0,1.83261433]
[1723961805577,0.00825,59688.0,59687.0,1.83735833]
[1723961805891,0.00825,59688.0,59687.0,1.84135833]
[1723961806113,0.00825,59688.0,59687.0,1.99146628]
[1723961806311,0.00825,59688.0,59687.0,1.95732823]
[1723961806508,0.00825,59688.0,59687.0,1.99146168]
[1723961807373,0.00825,59688.0,59687.0,1.98846168]
[1723961807576,0.00825,59688.0,59687.0,1.98446168]
[1723961807772,0.00825,59688.0,59687.0,1.99846168]
[1723961807994,0.00825,59688.0,59687.0,2.01246168]
[1723961809225,0.00825,59688.0,59687.0,1.9595113]
[1723961809421,0.00825,59688.0,59687.0,1.98446431]
[1723961809650,0.00825,59688.0,59687.0,1.99846431]
[1723961810231,0.00825,59688.0,59687.0,1.98928124]
[1723961810407,0.00825,59688.0,59687.0,1.99846525]
[1723961810929,0.00825,59688.0,59687.0,2.01246525]
[1723961811334,0.00825,59688.0,59687.0,1.86916525]
[1723961811570,0.00825,59688.0,59687.0,1.6370573]
[1723961811767,0.00825,59688.0,59687.0,1.7190573]
[1723961811966,0.00825,59688.0,59687.0,1.71902799]
[1723961812344,0.00825,59688.0,59687.0,1.71905109]
[1723961814512,0.00825,59688.0,59687.0,1.71805109]
[1723961818143,0.08445,59688.0,59687.0,1.71805109]
[1723961818344,0.14815,59688.0,59687.0,1.63605109]
[1723961818562,0.00825,59688.0,59687.0,1.48349509]
[1723961818728,0.00825,59688.0,59687.0,1.48352657]
[1723961820387,0.00825,59688.0,59687.0,1.71808257]
[1723961820603,0.00825,59688.0,59687.0,1.48352657]
[1723961820802,0.00825,59688.0,59687.0,1.48452657]
[1723961821000,0.00825,59688.0,59687.0,1.48652657]
[1723961821197,0.14705,59688.0,59687.0,1.48652657]
[1723961821397,0.14705,59688.0,59687.0,1.37678624]
[1723961821642,0.14705,59688.0,59687.0,1.48653637]
[1723961821840,0.14705,59688.0,59687.0,1.4523869]
[1723961822061,0.14705,59688.0,59687.0,1.48653674]
[1723961822753,0.14705,59688.0,59687.0,0.53440465]
[1723961822961,0.14705,59688.0,59687.0,0.60956263]
[1723961823163,0.14705,59688.0,59687.0,0.58453761]
[1723961823292,0.14705,59688.0,59687.0,1.85393761]
[1723961823493,0.14705,59688.0,59687.0,1.83993761]
[1723961823921,0.14705,59688.0,59687.0,1.83693761]
[1723961824091,0.14705,59688.0,59687.0,1.46063537]
[1723961824307,0.14705,59688.0,59687.0,1.53573062]
[1723961824513,0.14705,59688.0,59687.0,1.46067412]
[1723961824967,0.14705,59688.0,59687.0,1.53576937]
[1723961825309,0.14705,59688.0,59687.0,1.40218784]
[1723961825458,0.14705,59688.0,59687.0,1.45225371]
[1723961826291,0.14705,59688.0,59687.0,1.34246587]
[1723961826448,0.14705,59688.0,59687.0,1.40219427]
[1723961826656,0.14705,59688.0,59687.0,1.45226014]
[1723961827302,0.14705,59688.0,59687.0,1.39119427]
[1723961827552,0.14705,59688.0,59687.0,1.37919427]
[1723961827716,0.14705,59688.0,59687.0,1.40019427]
[1723961827921,0.14705,59688.0,59687.0,1.45026014]
[1723961828114,0.14705,59688.0,59687.0,1.42926014]
[1723961828293,0.14705,59688.0,59687.0,1.38619427]
[1723961828493,0.14705,59688.0,59687.0,1.39219427]
[1723961828696,0.14705,59688.0,59687.0,2.29790014]
[1723961828900,0.14705,59688.0,59687.0,2.33203546]
[1723961829075,0.14705,59688.0,59687.0,0.9532763]
[1723961829304,0.14705,59688.0,59687.0,0.72790838]
[1723961829522,0.14705,59688.0,59687.0,0.81855043]
[1723961829874,0.14705,59688.0,59687.0,0.72789989]
[1723961830857,0.14705,59688.0,59687.0,0.96245589]
[1723961833563,0.14705,59688.0,59687.0,0.96244898]
[1723961833966,0.14705,59688.0,59687.0,1.17204198]
[1723961834180,0.14705,59688.0,59687.0,1.19700481]
[1723961834572,0.14705,59688.0,59687.0,1.19699856]
[1723961838276,0.14705,59688.0,59687.0,1.19699557]
[1723961838724,0.14705,59688.0,59687.0,1.16284591]
[1723961838916,0.14705,59688.0,59687.0,1.19698708]
[1723961841543,0.14705,59688.0,59687.0,1.43154308]
[1723961842754,0.14705,59688.0,59687.0,1.43154275]
[1723961843423,0.14705,59688.0,59687.0,1.2876522]
[1723961843560,0.14705,59688.0,59687.0,1.4315425]
[1723961844411,0.14705,59688.0,59687.0,1.42235559]
[1723961844622,0.14705,59688.0,59687.0,1.52251923]
[1723961845162,0.14705,59688.0,59687.0,1.39740953]
[1723961846057,0.14705,59688.0,59687.0,1.39742329]
[1723961846846,0.14705,59688.0,59687.0,1.52254023]
[1723961847449,0.14705,59688.0,59687.0,1.52253155]
[1723961848038,0.14705,59688.0,59687.0,1.54749599]
[1723961848241,0.14705,59688.0,59687.0,1.54749554]
[1723961848646,0.14705,59688.0,59687.0,1.28766268]
[1723961848848,0.14705,59688.0,59687.0,1.55668735]
[1723961849052,0.14705,59688.0,59687.0,1.52253561]
[1723961849520,0.00825,59688.0,59687.0,1.69409015]
[1723961849716,0.00825,59688.0,59687.0,1.83868273]
[1723961849924,0.00825,59688.0,59687.0,1.98328273]
[1723961850171,0.00825,59688.0,59687.0,3.58923873]
[1723961850331,0.00825,59692.0,59691.0,1.050493]
[1723961850687,0.00825,59692.0,59691.0,3.34161473]
[1723961851091,0.00825,59692.0,59691.0,3.39775397]
[1723961851294,0.00825,59692.0,59691.0,3.89928912]
[1723961851500,0.00825,59692.0,59691.0,3.71510857]
[1723961851708,0.00825,59692.0,59691.0,3.33854319]
[1723961851921,0.00825,59692.0,59691.0,3.37880119]
[1723961852120,0.00825,59692.0,59691.0,3.33854587]
[1723961852275,0.00825,59692.0,59691.0,3.34154587]
[1723961852478,0.00825,59692.0,59691.0,3.33854587]
[1723961852878,0.00825,59692.0,59691.0,3.87294922]
[1723961853059,0.00825,59692.0,59691.0,3.89984708]
[1723961853267,0.00825,59692.0,59691.0,4.04984324]
[1723961853667,0.00825,59692.0,59691.0,3.52943989]
[1723961854966,0.00825,59692.0,59691.0,3.52643411]
[1723961855250,0.00825,59692.0,59691.0,3.52943411]
[1723961855582,0.00825,59692.0,59691.0,3.52943363]
[1723961856508,0.00825,59692.0,59691.0,3.52932707]
[1723961857102,0.00825,59692.0,59691.0,3.23553716]
[1723961857299,0.00825,59692.0,59691.0,3.52930646]
[1723961857599,0.00825,59692.0,59691.0,3.37936945]
[1723961857825,0.00825,59692.0,59691.0,3.41962047]
[1723961858044,0.00825,59692.0,59691.0,3.37936735]
[1723961858237,0.00825,59692.0,59691.0,3.93993137]
[1723961858355,0.00825,59692.0,59691.0,3.4196203]
[1723961858757,0.00825,59692.0,59691.0,3.93993137]
[1723961858964,0.00825,59692.0,59691.0,3.92593137]
[1723961859163,0.00825,59692.0,59691.0,3.3653678]
[1723961859607,0.00825,59692.0,59691.0,3.89967887]
[1723961859807,0.00825,59692.0,59691.0,3.3793678]
[1723961860416,0.00825,59692.0,59691.0,3.3898728]
[1723961861015,0.00825,59692.0,59691.0,3.91018387]
[1723961861394,0.00825,59692.0,59691.0,3.3898728]
[1723961861999,0.00825,59692.0,59691.0,3.24604216]
[1723961862197,0.00825,59692.0,59691.0,3.3898731]
[1723961862753,0.00825,59692.0,59691.0,3.3898664]
[1723961863098,0.00825,59692.0,59691.0,3.3868664]
[1723961863324,0.00825,59692.0,59691.0,3.3898664]
[1723961865211,0.0105046,59697.0,59696.0,0.821823]
[1723961865418,0.0105046,59697.0,59696.0,1.58166964]
[1723961865621,0.0105046,59697.0,59696.0,1.58166399]
[1723961865817,0.0105046,59697.0,59696.0,1.58366399]
[1723961866046,0.0105046,59697.0,59696.0,1.55871328]
[1723961866725,0.0105046,59697.0,59696.0,1.61166399]
[1723961866903,0.0105046,59697.0,59696.0,1.58671328]
[1723961867462,0.0105046,59697.0,59696.0,1.60866399]
[1723961867662,0.0105046,59697.0,59696.0,1.58371328]
[1723961867866,0.0105046,59697.0,59696.0,2.85311328]
[1723961868089,0.0105046,59697.0,59696.0,2.87806399]
[1723961868286,0.0105046,59697.0,59696.0,3.00291132]
[1723961868825,0.0105046,59697.0,59696.0,3.00290792]
[1723961869960,0.0105046,59697.0,59696.0,3.00290622]
[1723961870073,0.0105046,59697.0,59696.0,2.89321852]
[1723961870279,0.0105046,59697.0,59696.0,2.87805874]
[1723961872815,0.0105046,59697.0,59696.0,2.88105874]
[1723961873245,0.0105046,59697.0,59696.0,2.89023752]
[1723961873449,0.0105046,59697.0,59696.0,2.88723752]
[1723961874235,0.0105046,59697.0,59696.0,3.41587604]
[1723961874478,0.0105046,59697.0,59696.0,3.51587604]
[1723961874856,0.0105046,59697.0,59696.0,3.51585415]
[1723961875257,0.0105046,59697.0,59696.0,3.38120897]
[1723961875457,0.0105046,59697.0,59696.0,3.3659828]
[1723961875696,0.0105046,59697.0,59696.0,3.51577101]
[1723961876754,0.0105046,59697.0,59696.0,3.45097101]
[1723961876953,0.0105046,59697.0,59696.0,3.37147101]
[1723961878172,0.0105046,59697.0,59696.0,3.41169881]
[1723961878447,0.0105046,59697.0,59696.0,3.35608772]
[1723961878595,0.0105046,59697.0,59696.0,3.41169825]
[1723961879276,0.0105046,59697.0,59696.0,3.27776104]
[1723961879486,0.0105046,59697.0,59696.0,3.10297176]
[1723961879692,0.0105046,59697.0,59696.0,3.56601059]
[1723961879888,0.0105046,59697.0,59696.0,3.25571018]
[1723961880112,0.0105046,59697.0,59696.0,3.28073869]
[1723961880320,1e-08,59700.0,59699.0,0.902781]
[1723961880512,1e-08,59700.0,59699.0,1.58969623]
[1723961880838,0.06410001,59700.0,59699.0,1.58969623]
[1723961881187,0.06410001,59700.0,59699.0,1.71452505]
[1723961881439,0.06410001,59700.0,59699.0,1.59071505]
[1723961881650,0.06410001,59700.0,59699.0,1.58971505]
[1723961881651,0.05910001,59700.0,59699.0,1.58971505]
[1723961881822,0.05910001,59700.0,59699.0,1.60371505]
[1723961882630,0.05910001,59700.0,59699.0,1.60374422]
[1723961882832,0.05910001,59700.0,59699.0,1.60373714]
[1723961883030,0.117225,59714.0,59702.0,0.820743]
[1723961883233,0.117225,59714.0,59702.0,1.68957732]
[1723961883997,0.117226,59714.0,59702.0,1.68957732]
[1723961884360,0.117227,59713.0,59702.0,1.68957732]
[1723961884624,0.234445,59716.0,59702.0,1.70357732]
[1723961884625,0.117225,59714.0,59702.0,1.70357732]
[1723961884830,0.0641,59705.0,59702.0,1.71757732]
[1723961885793,0.0641,59705.0,59702.0,2.98697732]
[1723961886609,0.0641,59707.0,59702.0,2.98697792]
[1723961887243,0.0641,59707.0,59702.0,2.84304499]
[1723961887443,0.0641,59707.0,59702.0,2.96189034]
[1723961887645,0.0641,59707.0,59702.0,2.84304499]
[1723961887968,0.0641,59707.0,59702.0,2.98683442]
[1723961889833,0.0656,59709.0,59702.0,3.30423242]
[1723961890062,0.0656,59709.0,59702.0,3.30123242]
[1723961890269,0.0656,59709.0,59702.0,3.12145424]
[1723961890457,0.15525,59703.0,59702.0,2.88695624]
[1723961891852,0.15525,59703.0,59702.0,2.74316681]
[1723961892046,0.15525,59703.0,59702.0,2.80494508]
[1723961892246,0.15525,59703.0,59702.0,2.92983149]
[1723961892446,0.15525,59703.0,59702.0,2.80494508]
[1723961893626,0.15525,59703.0,59702.0,2.57044708]
[1723961895627,0.15525,59703.0,59702.0,2.56126761]
[1723961896014,0.15525,59703.0,59702.0,2.13027372]
[1723961896240,0.15525,59703.0,59702.0,2.13034967]
[1723961896448,0.15525,59703.0,59702.0,2.25544904]
[1723961896877,0.15525,59703.0,59702.0,2.25547827]
[1723961897105,0.15525,59703.0,59702.0,2.14574487]
[1723961897398,0.15525,59703.0,59702.0,2.25548523]
[1723961897626,0.15525,59703.0,59702.0,2.02098723]
[1723961897829,0.15525,59703.0,59702.0,1.90388236]
[1723961898043,0.15525,59703.0,59702.0,1.77878025]
[1723961898251,0.15525,59703.0,59702.0,1.93733052]
[1723961898666,0.15525,59703.0,59702.0,1.92333052]
[1723961899072,0.15525,59703.0,59702.0,1.75512875]
[1723961899206,0.15525,59703.0,59702.0,1.92333416]
[1723961899621,0.15525,59703.0,59702.0,2.04058316]
[1723961899966,0.15525,59703.0,59702.0,2.04058538]
[1723961900168,0.15525,59703.0,59702.0,1.92333638]
[1723961900369,0.15525,59703.0,59702.0,1.9404943]
[1723961900552,0.15525,59703.0,59702.0,1.9544943]
[1723961900699,0.15525,59703.0,59702.0,1.9404943]
[1723961900897,0.15525,59703.0,59702.0,1.9544943]
[1723961901102,0.15525,59703.0,59702.0,1.82324918]
[1723961901408,0.15525,59703.0,59702.0,1.93635029]
[1723961901613,0.741485,59703.0,59702.0,1.66804543]
[1723961901812,0.741485,59703.0,59702.0,1.35207134]
[1723961902450,1.057979,59703.0,59702.0,0.04779637]
[1723961902663,1.1637769,59703.0,59702.0,0.04779637]
[1723961902905,1.057979,59703.0,59702.0,0.04779637]
[1723961903439,1.26557473,59703.0,59702.0,0.04779637]
[1723961903643,1.26557473,59703.0,59702.0,0.014]
[1723961903923,0.667692,59697.0,59696.0,0.0009075]
[1723961904124,0.733292,59697.0,59696.0,0.0009075]
[1723961904379,0.815292,59697.0,59696.0,0.0217145]
[1723961905041,0.815292,59697.0,59696.0,0.02171462]
[1723961905449,0.815292,59697.0,59696.0,0.03271462]
[1723961906631,1.049809,59697.0,59696.0,0.03271462]
[1723961906834,1.049809,59697.0,59696.0,0.04271462]
[1723961907501,1.05999398,59697.0,59696.0,0.0119075]
[1723961907613,1.05999398,59697.0,59696.0,0.0009075]
[1723961915855,0.967809,59697.0,59696.0,0.0009075]
[1723961926343,0.967809,59697.0,59696.0,0.02170963]
[1723961930582,0.967809,59697.0,59696.0,0.0009075]
[1723961930792,0.967809,59697.0,59696.0,0.02170938]
[1723961930793,0.733292,59697.0,59696.0,0.02170938]
[1723961932237,0.733292,59697.0,59696.0,0.0009075]
[1723961932438,0.733292,59697.0,59696.0,0.05659022]
[1723961933227,0.967809,59697.0,59696.0,0.05659022]
[1723961933446,0.733292,59697.0,59696.0,0.05659022]
[1723961934299,0.586292,59697.0,59696.0,0.13419022]
[1723961934497,0.000825,59702.0,59696.0,0.20810924]
[1723961934738,0.117257,59698.0,59697.0,0.05568272]
[1723961935404,0.117257,59698.0,59696.0,0.15242652]
[1723961935599,0.117257,59698.0,59697.0,0.14488631]
[1723961935818,0.117257,59698.0,59697.0,0.09082957]
[1723961936222,0.117257,59698.0,59697.0,0.05665197]
[1723961936773,0.234508,59700.0,59698.0,0.0776]
[1723961936998,0.117253,59700.0,59699.0,0.05565181]
[1723961937197,0.351758,59700.0,59699.0,0.05565181]
[1723961939496,0.499258,59700.0,59699.0,0.05865181]
[1723961940415,0.416958,59700.0,59699.0,0.05865181]
[1723961941482,0.651463,59700.0,59699.0,0.05865181]
[1723961941669,0.968268,59700.0,59699.0,0.02378902]
[1723961942414,0.968268,59700.0,59699.0,0.02278902]
[1723961943043,0.968268,59700.0,59699.0,0.02078902]
[1723961943629,0.586292,59697.0,59696.0,0.0009075]
[1723961944049,0.586292,59697.0,59696.0,0.05658012]
[1723961945434,0.586292,59697.0,59696.0,0.11708012]
[1723961945876,0.733792,59697.0,59696.0,0.05658012]
[1723961946234,0.733792,59697.0,59696.0,0.05858012]
[1723961946455,0.586292,59697.0,59696.0,0.05858012]
[1723961946654,0.586292,59697.0,59696.0,0.02470391]
[1723961946968,0.586292,59697.0,59696.0,0.05957917]
[1723961947335,0.586292,59697.0,59696.0,0.08434951]
[1723961947704,0.586292,59697.0,59696.0,0.02867784]
[1723961947927,0.586292,59697.0,59696.0,0.08435036]
[1723961948130,0.586292,59697.0,59696.0,0.05958002]
[1723961950213,0.586292,59697.0,59696.0,0.0039075]
[1723961950426,0.586292,59697.0,59696.0,0.05957969]
[1723961951905,0.586292,59697.0,59696.0,0.0039075]
[1723961952106,0.586292,59697.0,59696.0,0.05957814]
[1723961952405,0.586292,59697.0,59696.0,0.10964982]
[1723961952406,0.351775,59697.0,59696.0,0.10964982]
[1723961952610,0.351775,59697.0,59696.0,0.10963983]
[1723961953193,0.351775,59697.0,59696.0,0.05396919]